Workbook

Sheet 2020 2021
A1: SCHOOL FURNITURE 2021 2022
A2: NO | B2: ITEM DESCRIPTION | C2: PLACE | D2: DOUBLE TABLES | F2: CHAIRS | H2: DOUBLE DESKS | J2: DOUBLE TABLES | K2: SINGLE TABLES | L2: CHAIRS | M2: DOUBLE DESKS | N2: TEACHERS DESKS | O2: TEACHERS CHAIRS | Q2: HIGHER PRIMARY CHAIRS | R2: LOWER PRIMARY TABLE | S2: LOWER PRIMARY SINGLE TABLE | T2: HIGHER PRIMARY TABLE | U2: HIGHER PRIMARY SINGLE TABLE | V2: CHAIRS LOWER PR | W2: GRADE R CHAIR | X2: DOUBLE TABLES HIGHER PRI | Y2: DOUBLE TABLES LOWER PRI | Z2: GRADE R TABLE | AA2: DOUBLE DESKS HIGHER PRIMARY | AB2: DOUBLE DESKS LOWER PRI | AC2: CHAIRS SECONDARY | AD2: SECONDARY TABLE | AE2: DOUBLE TABLES SECONDARY | AF2: SINGLE TABLES SECONDARY | AG2: SINGLE DESK | AH2: OAK DESK | AI2: COMBINATION DESK SECONDARY | AJ2: TEACHERS CHAIRS | AK2: TEACHERS DESKS DE | AL2: DINING HALL CHAIRS | AM2: FILLING CABINENT S | AN2: CABINETS | AO2: ROUND TABLES | AP2: LABORATORY | AQ2: DOUBLE SIDED CHALKBOARD | AR2: LBORATORY TABLES | AS2: OFFICE DESK | AT2: BOOKSHELF | AU2: COAT STAND | AV2: CORNER TABLE | AW2: COMPUTER TABLE | AX2: CREDENZA | AY2: HIGH BACK SWIVEL AND TWIST CHAIR WITH ARMS | AZ2: CONNECTING CORNER | BA2: GLAZED DOOR BOOKCASE | BB2: CUPBOARD | BC2: STATIONERY CUPBOARD | BD2: MATTERESS | BE2: INDUNA BED
A3: 1 | B3: MERITING PRIMARY SCHOOL | C3: RUSTENBURG | Q3: 150 | X3: 150
A4: 2 | B4: CHARORA SECONDARY SCHOOL | C4: RUSTENBURG | AC4: 200 | AF4: 100
A5: 3 | B5: OKOMELANG PRIMARY SCHOOL | C5: MOSES KOTANE | Q5: 200 | R5: 50 | T5: 150 | V5: 100 | AJ5: 20 | AK5: 18
A6: 4 | B6: MAFENYA PRIMARY SCHOOL | C6: RUSTENBURG | T6: 150 | AE6: =SUM(T6:AD6) -> 150
A7: 5 | B7: DIE HOERSKOOL WAGPOS | C7: RUSTENBURG | AE7: 0 | AI7: 250
A8: 6 | B8: AREGANENG SCHOOL | C8: RUSTENBURG | AE8: 0 | AZ8: 5 | BA8: 5
A9: 7 | B9: LETLOPI SECONDARY SCHOOL | C9: RUSTENBURG | AC9: 100 | AD9: 100 | AE9: 200
A10: 8 | B10: MOGWASE TECHNICAL SECONDARY SCHOOL | C10: MOSES KOTANE | AC10: 100 | AE10: 100 | AF10: 200 | AH10: 2 | AX10: 5 | AY10: 6 | AZ10: 2 | BC10: 5
A11: 9 | B11: BOSHOEK PRIMARY SCHOOL | C11: RUSTENBURG | R11: 50 | V11: 50 | AE11: 50
A12: 10 | B12: KELEDI SECONDARY SCHOOL | C12: RUSTENBURG | AD12: 50 | AE12: 50 | AX12: 5 | AY12: 30 | BC12: 5 | BE12: 6
A13: 11 | B13: IKEETLETSO SECONDARY SCHOOL | C13: RUSTENBURG | AC13: 200 | AD13: 100 | AE13: 300
A14: 12 | B14: KGABALATSANE PRIMARY SCHOOL | C14: MADIBENG | AE14: 0 | AY14: 30
A15: 13 | B15: MAKGEBETLOANE PRIMARY SCHOOL | C15: MADIBENG | Q15: 100 | T15: 100 | AE15: 100
A16: 14 | B16: LAERSKOOL GENERAAL HENDRIK SCHOEMAN | C16: MADIBENG | Q16: 20 | T16: 40 | AE16: 40
A17: 15 | B17: KGABALATSANE PRIMARY SCHOOL | C17: MADIBENG | R17: 25 | T17: 100 | AE17: 100
A18: 16 | B18: MAKGATLHANONG PRIMARY SCHOOL | C18: MADIBENG | Q18: 40 | R18: 25 | T18: 20 | V18: 50 | AE18: 70
A19: 17 | B19: PHOLOKGOLO PRIMARY SCHOOL | C19: MORETELE | Q19: 120 | T19: 60 | W19: 10 | Z19: 5 | AE19: 75
AE20: 0
A21: 18 | B21: MMAMARUMO PRIMARY SCHOOL | C21: MORETELE | Q21: 20 | T21: 20 | W21: 10 | Z21: 10 | AE21: 40
A22: 19 | B22: ITUMELENG SECONDARY SCHOOL | C22: MADIBENG | AC22: 120 | AE22: 120 | AF22: 100
A23: 20 | B23: SEKGOPI PRIMARY SCHOOL | C23: MORETELE | Q23: 200 | T23: 120 | AE23: 120
A24: 21 | B24: RAMOSHIE PRIMARY SCHOOL | C24: MORETELE | Q24: 150 | W24: 40 | X24: 75 | Z24: 20 | AC24: 60 | AD24: 60 | AE24: 255 | AJ24: 10 | AK24: 10
A25: 22 | B25: MOKHINE PRIMARY SCHOOL | C25: MOSES KOTANE | Q25: 150 | R25: 150 | X25: 75 | Y25: 75 | AE25: 150 | AJ25: 29 | AK25: 19
A26: 23 | B26: PHOLOKGOLO PRIMARY SCHOOL | C26: MORETELE | Q26: 120 | W26: 10 | X26: 60 | Z26: 5 | AE26: 75
A27: 24 | B27: BAPHALANE PRIMARY SCHOOL | C27: MOSES KOTANE | Q27: 150 | T27: 75 | AE27: 75
A28: 25 | B28: MARIKANA PRIMARY SCHOOL | C28: RUSTENBURG | R28: 75 | U28: 100 | V28: 150 | AE28: 250
A29: 26 | B29: LETSIBOGO PRIMARY SCHOOL | C29: RUSTENBURG | R29: 50 | U29: 100 | V29: 100 | AE29: 200
A30: 37 | B30: PLATINUM VILLAGE PRIMARY SCHOOL | C30: RUSTENBURG | Q30: 100 | R30: 160 | U30: 100 | V30: 80
A31: 27 | B31: RE-E-LWELE PRIMARY SCHOOL | C31: MADIBENG | Q31: 85 | R31: 25 | T31: 50 | V31: 50 | Z31: 5 | AE31: 105
A32: 28 | B32: PAARDEKRAAL PRIMARY SCHOOL | C32: RUSTENBURG | R32: 75 | V32: 150 | AE32: 150
A33: 29 | B33: TSHIRILOGANG PRIMARY SCHOOL | C33: RUSTENBURG | Q33: 100 | R33: 75 | U33: 100 | V33: 150 | AE33: 250
A34: 30 | B34: MFIHLAKALO SPECIAL SCHOOL | C34: MADIBENG | T34: 75 | AE34: 75 | AK34: 4
A35: 31 | B35: SJAMBOK PRIMARY SCHOOL | C35: MADIBENG | AA35: 50 | AE35: 50 | AJ35: 20
A36: 32 | B36: MARANG PRIMARY SCHOOL | C36: MADIBENG | Q36: 50 | T36: 25 | AA36: 50 | AE36: 75 | AJ36: 10 | AK36: 10
A37: 33 | B37: SEKWATI PRIMARY SCHOOL | C37: MADIBENG | Q37: 1560 | T37: 50 | Y37: =SUM(Y3:Y36) -> 75 | AA37: 50 | AE37: 175 | AJ37: 10 | AK37: 10
A38: 34 | B38: MOTLHANA PRIMARY SCHOOL | C38: MADIBENG | Q38: 100 | T38: 50 | W38: 40 | Z38: 20 | AJ38: 20 | AK38: 10 | AM38: 5
A39: 35 | B39: KEITUMETSE PRIMARY SCHOOL | C39: MADIBENG | Q39: 100 | T39: 50 | AA39: 50 | AJ39: 10 | AK39: 10
A40: 36 | B40: GEELHOUTPARK SEC SCHOOL | C40: RUSTENBURG | AC40: 150 | AD40: 75
A41: 37 | B41: RANKAE PRIMARY SCHOOL | C41: MOSES KOTANE | Q41: 160 | R41: 107 | T41: 80 | V41: 55 | W41: 32 | Z41: 16 | AJ41: 10 | AK41: 10
A42: 38 | B42: MOTLHE PRIMARY SCHOOL | C42: MORETELE | Q42: 100 | R42: 50 | T42: 50 | V42: 100 | W42: 20 | Z42: 20
A43: 39 | B43: DIKGORWANENG PRIMARY SCHOOL | C43: MORETELE | Q43: 100 | R43: 50 | T43: 50 | V43: 100 | W43: 30 | Z43: 30
A44: 40 | B44: MOJADEDI SECONDARY SCHOOL | C44: RUSTENBURG | AC44: 100 | AD44: 50
A45: 41 | B45: MOGWASE TECHNICAL SCHOOL | C45: MOSES KOTANE | AC45: 100
A46: 42 | B46: MICHAEL MODISAKENG SECONDARY | C46: MADIBENG | AC46: 150 | AF46: 75
A47: 43 | B47: TSEWE PRIMARY | C47: MADIBENG | Q47: 100 | T47: 50 | AA47: 50 | AJ47: 10 | AK47: 5
A48: 44 | B48: MOLEBATSI SECONDARY SCHOOL | C48: MORETELE | AC48: 100 | AD48: 50
A49: 45 | B49: TLAPA LA THUTO PRIMARY | C49: MADIBENG | Q49: 100 | R49: 50 | AA49: 50 | AJ49: 10 | AK49: 10
A50: 46 | B50: RAMATLA PRIMARY SCHOOL | C50: MORETELE | Q50: 30 | T50: 20
A51: 47 | B51: SEFIKILE PRIMARY SCHOOL | C51: MOSES KOTANE | Q51: 100 | T51: 50
A52: 48 | B52: MMATOPE PRIMARY SCHOOL | C52: MADIBENG | Q52: 40 | T52: 30 | AA52: 20 | AJ52: 15 | AK52: 15
A53: 49 | B53: MORONGWA PRIMARY SCHOOL | C53: MOSES KOTANE | Q53: 100 | U53: 100
A54: 50 | B54: NTHEBE PRIMARY SCHOOL | C54: MOSES KOTANE | Q54: 50 | U54: 50
A55: 51 | B55: MOREMOGOLO PRIMARY SCHOOL | C55: RUSTENBURG | Q55: 80 | U55: 80
A56: 52 | B56: ABANA PRIMARY SCHOOL | C56: RUSTENBURG | Q56: 100 | U56: 100
A57: 53 | B57: BANA PELE PRIMARY SCHOOL | C57: RUSTENBURG | Q57: 100 | U57: 100
A58: 54 | B58: MODULE PRIMARY SCHOOL | C58: MOSES KOTANE | Q58: 80 | U58: 80
A59: 55 | B59: L.D MATSHEGO PRIMARY SCHOOL | C59: RUSTENBURG | Q59: 100 | U59: 100
A60: 56 | B60: BATLHALERWA PRIMARY SCHOOL | C60: MOSES KOTANE | Q60: 90 | U60: 90
A61: 57 | B61: LEFARAGATLHA PRIMARY SCHOOL | C61: RUSTENBURG | Q61: 100 | U61: 100
A62: 58 | B62: MOKGAOTSI PRIMARY SCHOOL | C62: MOSES KOTANE | S62: 50 | U62: 50
A63: 59 | B63: MATIKI MOOKETSI PRIMARY SCHOOL | C63: MOSES KOTANE | S63: 50 | U63: 50
A64: 60 | B64: NALEDI YA MASA PRIMARY SCHOOL | C64: MOSES KOTANE | U64: 100
A65: 61 | B65: KGETLENG PRIMARY SCHOOL | C65: RUSTENBURG | U65: 100
A66: 62 | B66: MATHOPESTAT PRIMARY SCHOOL | C66: RUSTENBURG | R66: 25 | T66: 25 | Z66: 10 | AJ66: 11 | AK66: 10 | AS66: 1 | AV66: 1 | AX66: 1 | AY66: 1
A67: 63 | B67: NGOBI PRIMARY SCHOOL | C67: MORETELE | Q67: 20 | U67: 20 | W67: 10
A68: 64 | B68: THIPE PRIMARY SCHOOL | C68: MORETELE | U68: 100 | W68: 50 | Z68: 50
A69: 65 | B69: SENGANA PRIMARY SCHOOL | C69: MORETELE | U69: 50 | Z69: 50
A70: 66 | B70: MAKEKENG PRIMARY SCHOOL | C70: MORETELE | U70: 50 | Z70: 50
A71: 67 | B71: SWARISANANG PRIMARY SCHOOL | C71: MORETELE | Q71: 50 | S71: 50 | U71: 50
A72: 68 | B72: TLHALAPITSI PRIMARY SCHOOL | C72: MOSES KOTANE | Q72: 70 | T72: 70 | Z72: 10
A73: 69 | B73: T.K MOKOYANE PRIMARY SCHOOL | C73: MORETELE | Q73: 100 | R73: 50 | T73: 50 | V73: 100 | W73: 60 | Z73: 30
A74: 70 | B74: MODUBYANE PRIMARY SCHOOL | C74: MORETELE | Q74: 50 | T74: 25
A75: 71 | B75: THEBENARE PRIMARY SCHOOL | C75: MOSES KOTANE | Q75: 50 | T75: 25
A76: 72 | B76: MODIMOKWANE PRIMARY SCHOOL | C76: MORETELE | Q76: 100 | R76: 50 | T76: 50 | V76: 100 | W76: 20 | Z76: 20
A77: 73 | B77: DOOKA PRIMARY SCHOOL | C77: MORETELE | Q77: 100 | R77: 50 | T77: 50 | V77: 100 | AA77: =SUM(AA3:AA76) -> 320
A78: 74 | B78: MOGOGELO PRIMARY SCHOOL | C78: MORETELE | Q78: 100 | R78: 50 | T78: 50 | V78: 100
A79: 75 | B79: POIFO PRIMARY SCHOOL | C79: MOSES KOTANE | Q79: 100 | T79: 50
A80: 76 | B80: LAERSKOOL SONOP | C80: MADIBENG | Q80: 50 | T80: 100
A81: 77 | B81: SHAKUNG PRIMARY SCHOOL | C81: MADIBENG | Q81: 40 | X81: 20 | AA81: 40 | AJ81: 10 | AK81: 5
A82: 78 | B82: MOHAJANE PRIMARY SCHOOL | C82: MADIBENG | Q82: 100 | X82: 50 | AA82: 50 | AJ82: 10 | AK82: 10
A83: 79 | B83: MOTSISI PRIMARY SCHOOL | C83: MOSES KOTANE | Q83: 100 | T83: 50
A84: 80 | B84: RUSKRAAL PRIMARY SCHOOL | C84: RUSTENBURG | Q84: 200 | AJ84: 20
Q85: =SUM(Q3:Q84) -> 6275 | R85: 1242 | S85: 150 | T85: 2010 | U85: 1770 | V85: 1535 | W85: 332 | X85: 430 | Y85: =SUM(Y37) -> 75 | Z85: 346 | AA85: =SUM(AA12:AA84) -> 730 | AC85: =SUM(AC3:AC84) -> 1380 | AD85: =SUM(AD3:AD84) -> 485 | AE85: 3240 | AF85: =SUM(AF3:AF84) -> 475 | AH85: 2 | AI85: =SUM(AI3:AI37) -> 250 | AJ85: =SUM(AJ3:AJ84) -> 225 | AK85: =SUM(AK3:AK84) -> 156 | AM85: =SUM(AM3:AM40) -> 5 | AS85: =SUM(AS12:AS71) -> 1 | AV85: 1 | AW85: 1 | AX85: =SUM(AX3:AX40) -> 10 | AY85: =SUM(AY3:AY71) -> 67 | AZ85: =SUM(AZ8:AZ40) -> 7 | BA85: =SUM(BA3:BA40) -> 5 | BC85: =SUM(BC3:BC40) -> 10 | BE85: =SUM(BE3:BE40) -> 6 | BF85: 21221
BE90: ..

Sheet 1 quarter
A1: SCHOOL FURNITURE 2021 2022
A2: NO | B2: ITEM DESCRIPTION | C2: PLACE | D2: DOUBLE TABLES | F2: CHAIRS | H2: DOUBLE DESKS | J2: DOUBLE TABLES | K2: SINGLE TABLES | L2: CHAIRS | M2: DOUBLE DESKS | N2: TEACHERS DESKS | O2: TEACHERS CHAIRS | Q2: HIGHER PRIMARY CHAIRS | R2: LOWER PRIMARY TABLE | S2: HIGHER PRIMARY TABLE | T2: CHAIRS LOWER PR | U2: GRADE R CHAIR | V2: DOUBLE TABLES HIGHER PRI | W2: DOUBLE TABLES LOWER PRI | X2: GRADE R TABLE | Y2: DOUBLE DESKS HIGHER PRIMARY | Z2: DOUBLE DESKS LOWER PRI | AA2: CHAIRS SECONDARY | AB2: SECONDARY TABLE | AC2: DOUBLE TABLES SECONDARY | AD2: SINGLE TABLES SECONDARY | AE2: SINGLE DESK | AF2: OAK DESK | AG2: COMBINATION DESK SECONDARY | AH2: TEACHERS CHAIRS | AI2: TEACHERS DESKS DE | AJ2: DINING HALL CHAIRS | AK2: FILLING CABINENT S | AL2: CABINETS | AM2: ROUND TABLES | AN2: LABORATORY | AO2: DOUBLE SIDED CHALKBOARD | AP2: LBORATORY TABLES | AQ2: OFFICE DESK | AR2: BOOKSHELF | AS2: COAT STAND | AT2: CORNER TABLE | AU2: COMPUTER TABLE | AV2: CREDENZA | AW2: HIGH BACK SWIVEL AND TWIST CHAIR WITH ARMS | AX2: CONNECTING CORNER | AY2: GLAZED DOOR BOOKCASE | AZ2: CUPBOARD | BA2: STATIONERY CUPBOARD | BB2: MATTERESS | BC2: INDUNA BED | BE2: TOTAL
A3: 1 | B3: MERITING PRIMARY SCHOOL | C3: RUSTENBURG | Q3: 150 | V3: 150
A4: 2 | B4: CHARORA SECONDARY SCHOOL | C4: RUSTENBURG | AA4: 200 | AD4: 100
A5: 3 | B5: OKOMELANG PRIMARY SCHOOL | C5: MOSES KOTANE | Q5: 200 | R5: 50 | S5: 150 | T5: 100 | AH5: 20 | AI5: 18
A6: 4 | B6: MAFENYA PRIMARY SCHOOL | C6: RUSTENBURG | S6: 150 | AC6: =SUM(S6:AB6) -> 150
A7: 5 | B7: DIE HOERSKOOL WAGPOS | C7: RUSTENBURG | AC7: 0 | AG7: 250
A8: 6 | B8: AREGANENG SCHOOL | C8: RUSTENBURG | AC8: 0 | AX8: 5 | AY8: 5
A9: 7 | B9: LETLOPI SECONDARY SCHOOL | C9: RUSTENBURG | AA9: 100 | AB9: 100 | AC9: 200
A10: 8 | B10: MOGWASE TECHNICAL SECONDARY SCHOOL | C10: MOSES KOTANE | AC10: 0 | AF10: 2 | AV10: 5 | AW10: 6 | AX10: 2 | BA10: 5
A11: 9 | B11: BOSHOEK PRIMARY SCHOOL | C11: RUSTENBURG | R11: 50 | T11: 50 | AC11: 50
A12: 10 | B12: KELEDI SECONDARY SCHOOL | C12: RUSTENBURG | AB12: 50 | AC12: 50 | AV12: 5 | AW12: 30 | BA12: 5 | BC12: 6
A13: 11 | B13: IKEETLETSO SECONDARY SCHOOL | C13: RUSTENBURG | AA13: 200 | AB13: 100 | AC13: 300
A14: 12 | B14: KGABALATSANE PRIMARY SCHOOL | C14: MADIBENG | AC14: 0 | AW14: 30
A15: 13 | B15: MAKGEBETLOANE PRIMARY SCHOOL | C15: MADIBENG | Q15: 100 | S15: 100 | AC15: 100
A16: 14 | B16: LAERSKOOL GENERAAL HENDRIK SCHOEMAN | C16: MADIBENG | Q16: 20 | S16: 40 | AC16: 40
A17: 15 | B17: KGABALATSANE PRIMARY SCHOOL | C17: MADIBENG | R17: 25 | S17: 100 | AC17: 100
A18: 16 | B18: MAKGATLHANONG PRIMARY SCHOOL | C18: MADIBENG | Q18: 40 | R18: 25 | S18: 20 | T18: 50 | AC18: 70
A19: 17 | B19: PHOLOKGOLO PRIMARY SCHOOL | C19: MORETELE | Q19: 120 | S19: 60 | U19: 10 | X19: 5 | AC19: 75
A20: 18 | B20: MMAMARUMO PRIMARY SCHOOL | C20: MORETELE | Q20: 20 | S20: 20 | U20: 10 | X20: 10 | AC20: 40
A21: 19 | B21: ITUMELENG SECONDARY SCHOOL | C21: MADIBENG | AA21: 120 | AC21: 120 | AD21: 100
A22: 20 | B22: SEKGOPI PRIMARY SCHOOL | C22: MORETELE | Q22: 200 | S22: 120 | AC22: 120
A23: 21 | B23: RAMOSHIE PRIMARY SCHOOL | C23: MORETELE | Q23: 150 | U23: 40 | V23: 75 | X23: 20 | AA23: 60 | AB23: 60 | AC23: 255 | AH23: 10 | AI23: 10
A24: 22 | B24: MOKHINE PRIMARY SCHOOL | C24: MOSES KOTANE | Q24: 150 | R24: 150 | V24: 75 | W24: 75 | AC24: 150 | AH24: 29 | AI24: 19
A25: 23 | B25: PHOLOKGOLO PRIMARY SCHOOL | C25: MORETELE | Q25: 120 | U25: 10 | V25: 60 | X25: 5 | AC25: 75
A26: 24 | B26: BAPHALANE PRIMARY SCHOOL | C26: MOSES KOTANE | Q26: 150 | S26: 75 | AC26: 75
A27: 25 | B27: MARIKANA PRIMARY SCHOOL | C27: RUSTENBURG | R27: 75 | T27: 150 | AC27: 150
A28: 26 | B28: LETSIBOGO PRIMARY SCHOOL | C28: RUSTENBURG | R28: 50 | T28: 100 | AC28: 100
A29: 37 | B29: PLATINUM VILLAGE PRIMARY SCHOOL | C29: RUSTENBURG | R29: 160 | T29: 80
A30: 27 | B30: RE-E-LWELE PRIMARY SCHOOL | C30: MADIBENG | Q30: 85 | R30: 25 | S30: 50 | T30: 50 | X30: 5 | AC30: 105
A31: 28 | B31: PAARDEKRAAL PRIMARY SCHOOL | C31: RUSTENBURG | R31: 75 | T31: 150 | AC31: 150
A32: 29 | B32: TSHIRILOGANG PRIMARY SCHOOL | C32: RUSTENBURG | R32: 75 | T32: 150 | AC32: 150
A33: 30 | B33: MFIHLAKALO SPECIAL SCHOOL | C33: MADIBENG | S33: 75 | AC33: 75 | AI33: 4
Q34: =SUM(Q3:Q33) -> 1505 | R34: 760 | S34: 960 | T34: 880 | U34: 70 | V34: 360 | W34: 75 | X34: 45 | AA34: =SUM(AA3:AA33) -> 680 | AB34: =SUM(AB3:AB33) -> 310 | AC34: =SUM(AC3:AC33) -> 2700 | AD34: =SUM(AD3:AD33) -> 200 | AF34: =SUM(AF3:AF33) -> 2 | AG34: =SUM(AG3:AG33) -> 250 | AH34: =SUM(AH3:AH33) -> 59 | AI34: =SUM(AI3:AI33) -> 51 | AV34: =SUM(AV3:AV33) -> 10 | AW34: =SUM(AW3:AW33) -> 66 | AX34: =SUM(AX3:AX33) -> 7 | AY34: =SUM(AY3:AY33) -> 5 | BA34: =SUM(BA3:BA33) -> 10 | BC34: =SUM(BC3:BC33) -> 6 | BE34: =SUM(Q34:BD34) -> 9011

Sheet Sheet1
C1: BOJANALA | D1: SCHOOL FURNITURE 2023/2024
A2: NO | B2: NAME OF SCHOOL | C2: SUB-DISTRICT | D2: SCHOOL'S ADDRESS | E2: SCHOOLS CONTACTS | F2: HIGHER PRIMARY CHAIRS | G2: LOWER PRIMARY TABLE | H2: HIGHER PRIMARY TABLE | I2: CHAIRS LOWER PRIMARY | J2: GRADE R CHAIR | K2: SINGLE TABLES HIGHER PRI | L2: SINGLE TABLES LOWER PRI | M2: GRADE R TABLE | N2: DOUBLE DESKS HIGHER PRIMARY | O2: DOUBLE DESKS LOWER PRI | P2: SINGLE DESKS HIGHER PRIMARY | Q2: SINGLE DESKS LOWER PRI | R2: CHAIRS SECONDARY | S2: DOUBLE TABLES SECONDARY | T2: SINGLE TABLES SECONDARY | U2: SINGLE DESK | V2: COMBINATION DESK SECONDARY | W2: TEACHERS CHAIRS | X2: TEACHERS DESKS | Y2: CABINETS
A3: 1 | B3: Thulare Secondary School | C3: MORETELE | E3: 079 286 7227 | R3: 920 | S3: 920
A4: 2 | B4: Machakela Mamodibo Sec | C4: MORETELE | E4: 082 899 5719 | R4: 1238 | S4: 1238
A5: 3 | B5: Hendrick Makapan Sec | C5: MORETELE | D5: 632 Block B, Dikebu village Makapanstad | E5: 083 533 2164 | R5: 60 | S5: 120
A6: 4 | B6: Mmakaunyana Secondary | C6: MORETELE | D6: Stand number E83A/1013 PHASE ONE Mmakaunyane 0207 | E6: 079 112 7062 | R6: 100 | S6: 200
A7: 5 | B7: Maruatona Dikobe Secondary | C7: MORETELE | E7: 082 317 7755 | R7: 100 | S7: 100
A8: 6 | B8: Loalane Seconadry School | C8: MORETELE | D8: 405 Moshabelo Section Ratjiepan 0146 | E8: 083 412 4871 | R8: 200 | S8: 400
A9: 7 | B9: Kgaphamadi Secondary | C9: MORETELE | D9: Plot no:378 Bosplaas West 0409 | E9: 076 904 9822 | R9: 200 | S9: 200
A10: 8 | B10: Matlaisane Secondary | C10: MORETELE | D10: 8564 Ipeleng section, Dertig 0418 | E10: 061 224 5270 | R10: 100 | S10: 100
A11: 9 | B11: Kosea-Moeka Primary | C11: MORETELE | D11: E878 Zone 3, Moeka village 0440 | E11: 083 216 1814
A12: 10 | B12: Dikgorwaneng Primary | C12: MORETELE | D12: Jr 96 Itireleng Section Mogogelo village Hammanskraal | E12: 078 405 5650 | H12: 300 | I12: 600
A13: 11 | B13: Makgatlhanong Primary | C13: MORETELE | D13: Makaunyana No 2 E308 Mmakaunyana | E13: 082 632 8875 | F13: 200 | H13: 100
A14: 12 | B14: Mmamarumo Primary | C14: MORETELE | D14: 751 Block C Greenside | E14: 076 540 3537 | F14: 180 | H14: 90 | I14: 140 | J14: 36 | M14: 8
A15: 13 | B15: Makgabetloane Primary | C15: MORETELE | D15: E 458 Motseng Section Makgabetloane village Jericho 0189 | E15: 073 384 6269 | F15: 34 | H15: 20 | I15: 43 | J15: 20 | M15: 20
A16: 14 | B16: T.K Mokonyane Primary | C16: MORETELE | D16: 3576 Clinton Garden Motla village | E16: 082 439 5349 | H16: 50
A17: 15 | B17: Kwa-mocha Primary | C17: MORETELE | D17: 754 Block C1, Greenside Maubane | E17: 076 479 6174 | F17: 100 | H17: 50 | I17: 50
A18: 16 | B18: Relebogile Primary School | C18: MORETELE | D18: L244 Legaganeng Section Swartdamstad | E18: 728,050,323 | F18: 50 | H18: 50
A19: 17 | B19: Lekgolo Primary School | C19: MORETELE | D19: 32 Block A Lekgolo village | E19: 079 455 1674 | F19: 40 | H19: 20
A20: 18 | B20: Morokwa-Ditlou Primary | C20: MORETELE | D20: Stand no.001 Ruigtesloot 0486 | E20: 065 521 6987 | F20: 150 | H20: 100 | W20: 10 | X20: 10
A21: 19 | B21: Sekgopi Primary School | C21: MORETELE | D21: 7001 Zone 7 Lebotloane 0411 | E21: 079 356 9646 | F21: 100 | H21: 50
A22: 20 | B22: Khubamelo Primary School | C22: MORETELE | D22: E119 Nyakelang Section Mmakaunyana 0207 | E22: 083 410 2901
A23: 21 | B23: Boitemogelo Primary | C23: MORETELE | E23: 072 603 6045 | I23: 120 | K23: 60
A24: 22 | B24: Dooka Primary School | C24: MORETELE | D24: Plot No. 239 Bosplaas East Hammanskraal | E24: 082 944 1929 | F24: 100 | H24: 50
A25: 23 | B25: Mahobotle Primary School | C25: MORETELE | D25: 1347 Lefatlheng Section Mathibestad | E25: 073 366 8175 | F25: 100 | H25: 50
A26: 24 | B26: BOTLHABELO SECONDARY | C26: Madibeng | E26: 670606689 | R26: 300 | U26: 150 | V26: 150
A27: 25 | B27: BAPO PRIMARY | C27: Madibeng | E27: 711585620 | F27: 100 | P27: 100
A28: 26 | B28: Kgwanyape Primary | C28: Madibeng | E28: 761028590 | F28: 200 | N28: 200 | P28: 100
A29: 37 | B29: Kutlwano Primary | C29: Madibeng | E29: 715626203 | F29: 200 | P29: 85
A30: 27 | B30: Mogale Seconday | C30: Madibeng | E30: 825742527 | F30: 85
A31: 28 | B31: Modisakwano Primary | C31: Madibeng | E31: 736456259 | F31: 100 | N31: 50
A32: 29 | B32: Nkukime Primary | C32: Madibeng | E32: 832072098 | F32: 200 | N32: 100
A33: 30 | B33: Oukasie Primary | C33: Madibeng | E33: 731720229 | F33: 150 | P33: 150
A34: 31 | B34: Pansdrift Primary | C34: Madibeng | E34: 829560160 | F34: 120 | N34: 60 | P34: 100
A35: 32 | B35: Rooikoppies Primary | C35: Madibeng | E35: 717423332 | F35: 40 | P35: 40
A36: 33 | B36: Segwetlhane Primary | C36: Madibeng | E36: 724469652 | F36: 100 | N36: 100
A37: 34 | B37: Sefatanare Primary | C37: Madibeng | E37: 710500769 | F37: 100 | N37: 100
A38: 35 | B38: ST Catherine | C38: Madibeng | F38: 250 | N38: 100
A39: 36 | B39: ST Theresa Secondary | C39: Madibeng | E39: 826877201 | F39: 200 | N39: 100 | P39: 150
A40: 37 | B40: Voorwarts Primary | C40: Madibeng | E40: 731212222 | F40: 200 | N40: 100 | P40: 100
A41: 38 | B41: Rekgonne Bapo | C41: Madibeng | E41: 8329395878 | F41: 100 | N41: 50
A42: 39 | B42: Motlhake Primary | C42: Madibeng | E42: 836988453 | F42: 300 | P42: 300
A43: 40 | B43: Mothotlung Secondary | C43: Madibeng | E43: 729077055 | R43: 300 | T43: 300
A44: 41 | B44: New Majakaneng Primary | C44: Madibeng | E44: 788020639 | F44: 584 | P44: 584
A45: 42 | B45: Odi Primary | C45: Madibeng | E45: 828091002 | F45: 200 | P45: 200
A46: 43 | B46: Seroophata Primary | C46: Madibeng | E46: 828306653 | F46: 200 | P46: 200
A47: 44 | B47: Michael Modisakeng Secondary | C47: Madibeng | E47: 788183175 | P47: 50 | U47: 50 | W47: 20 | X47: 20
A48: 45 | B48: Thaba Morula Secondary | C48: Madibeng | E48: 723475487 | F48: 50 | P48: 50
A49: 46 | B49: IB Damons Combined | C49: Madibeng | E49: 635472803 | F49: 250 | P49: 250
A50: 47 | B50: Katakane Primary | C50: Madibeng | E50: 725231540 | F50: 250 | P50: 100
A51: 48 | B51: Mohajane Primary | C51: Madibeng | E51: 718776886 | F51: 150 | P51: 150
A52: 49 | B52: Ennis Thabong Primary | C52: Madibeng | E52: 722496181 | F52: 100 | P52: 100
A53: 50 | B53: Re e Lwele Primary | C53: Madibeng | E53: 827617816 | F53: 100 | N53: 50
A54: 51 | B54: Molelwaneng Primary | C54: Madibeng | E54: 837595888 | F54: 60 | P54: 100
A55: 52 | B55: Lot Phalatse Primary | C55: Madibeng | F55: 400 | N55: 60 | R55: 300 | T55: 300
A56: 53 | B56: Lesedi Le Legolo Primary | C56: Madibeng | F56: 30 | W56: 20
A57: 54 | B57: Jethro Pelle Primary | C57: Madibeng | F57: 86 | H57: 25 | W57: 20 | X57: 20
A58: 55 | B58: Maledu Molepe | C58: Madibeng | F58: 100 | K58: 86 | W58: 24 | X58: 40
A59: 56 | B59: Tlhoafalo Primary | C59: Madibeng | F59: 80 | K59: 100 | W59: 22 | X59: 15
A60: 57 | B60: Sehibidu Primary | C60: Madibeng | F60: 150 | K60: 100 | W60: 26 | X60: 20
A61: 58 | B61: Ikatisong Secondary | C61: Madibeng | R61: 150 | T61: 150 | W61: 70 | X61: 40
A62: 59 | B62: Lorato Primary | C62: Madibeng | F62: 150 | K62: 150 | W62: 32 | X62: 32
A63: 60 | B63: Micha Kgasi Secondary | C63: Madibeng | R63: 150 | T63: 150 | W63: 60 | X63: 60
A64: 61 | B64: Ontlametse Phalatse Primary | C64: Madibeng | F64: 150 | K64: 150 | W64: 25 | X64: 25
A65: 62 | B65: Oskraal Primary | C65: Madibeng | F65: 205 | K65: 100 | W65: 10
A66: 63 | B66: Tlhasedi Primary | C66: Madibeng | F66: 100 | K66: 103 | W66: 27 | X66: 27
A67: 64 | B67: Central Primary | C67: Madibeng | N67: 250 | W67: 15 | X67: 15
A68: 65 | B68: Tlhophane | C68: Madibeng | F68: 100 | W68: 15 | X68: 10
A69: 66 | B69: Machadam Combined | C69: Madibeng | F69: 100 | R69: 200 | T69: 300 | W69: 10 | X69: 10
A70: 67 | B70: Central Secondary | C70: Madibeng | R70: 150 | U70: 150 | W70: 10 | X70: 15
A71: 68 | B71: Khulusa Primary | C71: Madibeng | F71: 20 | P71: 10 | W71: 15 | X71: 5
A72: 69 | B72: Tlhapi Morue | C72: Madibeng | F72: 200 | P72: 50 | W72: 15
A73: 70 | B73: Laerskool Brits | C73: Madibeng | F73: 10 | P73: 10 | W73: 20
A74: 71 | B74: Laerskool Olienpark | C74: Madibeng | F74: 40 | P74: 20 | W74: 20
A75: 72 | B75: Thornhill Primary | C75: Madibeng | F75: 50 | P75: 50 | W75: 15
A76: 73 | B76: Morekolodi Primary | C76: Madibeng | F76: 50 | P76: 50 | W76: 10
A77: 74 | B77: Glenwoods | C77: Madibeng | F77: 50 | P77: 150 | W77: 10
A78: 75 | B78: Hoerskool Wagpos | C78: Madibeng | R78: 300 | U78: 100
A79: 76 | B79: Polonia Primary | C79: Madibeng | F79: 130 | P79: 50
A80: 77 | B80: BK Guma Primary | C80: Madibeng | F80: 250 | H80: 250 | W80: 10 | X80: 10
A81: 78 | B81: Klipvoor Primary | C81: Madibeng | F81: 4 | H81: 4
A82: 79 | B82: Komanae Primary | C82: Madibeng | F82: 150 | H82: 300 | K82: 75 | L82: 75 | W82: 27 | X82: 27
A83: 80 | B83: Khothalo Primary | C83: Madibeng | F83: 200 | H83: 200 | W83: 5 | X83: 22
A84: 81 | B84: Lethabong Primary | C84: Madibeng | F84: 50 | H84: 50
A85: 82 | B85: Lot Mashiane Sec | C85: Madibeng | R85: 300 | T85: 300 | W85: 50 | X85: 50
A86: 83 | B86: Madiba A Toloane Sec | C86: Madibeng | R86: 250 | T86: 250
A87: 84 | B87: Madinyane Primary | C87: Madibeng | F87: 50 | H87: 50 | W87: 8 | X87: 8
A88: 85 | B88: Mafale primary | C88: Madibeng | F88: 300 | H88: 300
A89: 86 | B89: Mmatope Primary | C89: Madibeng | F89: 30 | H89: 30
A90: 87 | B90: Rekopantswe Sec | C90: Madibeng
A91: 88 | B91: Tumo Primary | C91: Madibeng | F91: 100 | H91: 100
A92: 89 | B92: Tsogwe Primary | C92: Madibeng | F92: 60 | H92: 60
A93: 90 | B93: Tshefoge Primary | C93: Madibeng | F93: 140 | H93: 140
A94: 91 | B94: Phutanang Primary | C94: Madibeng | F94: 200 | H94: 200 | W94: 26 | X94: 26
A95: 92 | B95: Molelwane PS | C95: Madibeng | F95: 15 | H95: 10 | W95: 8
A96: 93 | B96: Disigwane PS | C96: Madibeng | F96: 15 | H96: 15 | W96: 5
A97: 94 | B97: Edward Primary school | C97: Madibeng | F97: 150 | H97: 150 | W97: 20
A98: 95 | B98: Thuto Pele Sec | C98: Madibeng | R98: 400 | S98: 200
A99: 96 | B99: Charles Mamogale PS | C99: Madibeng | F99: 110 | H99: 220
A100: 97 | B100: Tolamo PS | C100: Madibeng | F100: 100 | H100: 200
A101: 98 | B101: Tebogo Primary school | C101: Madibeng | N101: 150 | X101: 10
A103: 99 | B103: LAERSKOOL SONOP | C103: Madibeng | F103: 80 | H103: 50 | N103: 25
A104: 100 | B104: SEMETSA SEC | C104: MOSES KOTANE | D104: BAPO 11 VILLAGE, BAPONG | R104: 100 | T104: 100 | W104: 10 | X104: 10 | Y104: 10
A105: 101 | B105: THEBE YA TLHAJWA SEC | C105: MOSES KOTANE | D105: BRAAKUIL VILLAGE | E105: 792730978 | R105: 200 | T105: 200 | W105: 12 | X105: 12 | Y105: 10
A106: 102 | B106: MADIMA PRIM | C106: MOSES KOTANE | D106: MANAMAKGOTENG VILLAGE | E106: 782106010 | F106: 100 | G106: 50 | H106: 100 | I106: 50 | W106: 10 | X106: 10 | Y106: 5
A107: 103 | B107: ITUMELENG SEC | C107: MOSES KOTANE | D107: LEDIG VILLAGE | E107: 603236948 | R107: 150 | T107: 150 | W107: 20 | X107: 10 | Y107: 10
A108: 104 | B108: SEDIBELO SEC | C108: MOSES KOTANE | D108: LESETLHENG VILLAGE, SAULSPOORT | E108: 739753389 | R108: 120 | T108: 120 | W108: 25 | X108: 15 | Y108: 10
A109: 105 | B109: MANAMAKGOTHA SEC | C109: MOSES KOTANE | D109: MANAMAKGOTEG VILLAGE | E109: 648123183 | R109: 150 | S109: 50 | T109: 100 | W109: 20 | X109: 10 | Y109: 10
A110: 106 | B110: MOTLHAJOE PRIM | C110: MOSES KOTANE | D110: RAMOTLHAJOE VILLAGE | F110: 80 | G110: 50 | H110: 80 | I110: 50 | W110: 8 | X110: 8
A111: 107 | B111: MADUTLE PRIMARY | C111: MOSES KOTANE | D111: WEGEVAL VILLAGE. SAULSPOORT0824712655 | F111: 130 | G111: 100 | H111: 150 | I111: 100 | W111: 10 | X111: 10 | Y111: 9
A112: 108 | B112: GAOTIME SEC | C112: MOSES KOTANE | D112: NO.3 PHAHAMA SECTION MMOROGONG | E112: 642762080 | R112: 27 | V112: 27
A113: 109 | B113: DINKWE PRIMRY SCHOOL | C113: MOSES KOTANE | H113: 70 | N113: 20
A114: 110 | B114: MOGWASE TECHINCAL SCHOOL | C114: MOSES KOTANE | R114: 100 | T114: 100
A115: 111 | B115: REIPUSENG SEC | C115: MOSES KOTANE | D115: 203 IPOPENG SECTION VREDE | E115: 834787802 | R115: 400 | S115: 150 | W115: 15 | X115: 15
A116: 112 | B116: ABANA PRIMARY | C116: RUSTEBURG | D116: MOKOLOKWE STR, BOITEKONG | F116: 80 | G116: 50 | H116: 80 | I116: 50
A117: 113 | B117: GRENVILLE SEC | C117: RUSTEBURG | D117: 98 KLOPPER STR, RUSTENBURG | R117: 100 | U117: 100
A118: 114 | B118: BOTHIBELLO PRIM | C118: RUSTENBURG | D118: PHATSIMA VILLAGE | E118: 739520213 | F118: 100 | G118: 60 | H118: 100 | I118: 80
A119: 115 | B119: MARIKANA PRIMARY | C119: RUSTENBURG | D119: 2218 TSAKANE STR, MARIKANA | E119: 145723216 | F119: 100 | G119: 100 | H119: 100 | I119: 100
A120: 116 | B120: REEBONE SEC | C120: RUSTENBURG | D120: SWARTUGGENS | E120: 832819292 | R120: 200 | T120: 200 | V120: 700 | W120: 45 | X120: 45 | Y120: 45
A121: 117 | B121: BOIKAGONG PRIMARY | C121: RUSTENBURG | D121: PAARDEKRAAL EXT 3 | E121: 735930213 | F121: 120 | G121: 100 | H121: 120 | I121: 100
A122: 118 | B122: KARLIEN PARK PRIMARY | C122: RUSTENBURG | D122: 28 KARLIEN STR, KARKIENOARK | E122: 717909461 | F122: 100 | G122: 100 | H122: 100 | I122: 100
A123: 119 | B123: KGATSHENG THABISO SEC | C123: RUSTENBURG | D123: 2060 LEFFARAGATLHA, PHOKENG | R123: 100 | S123: 90 | T123: 10 | U123: 10 | V123: 100 | W123: 60 | Y123: 8
A124: 120 | B124: VUKUZENSEZELE PRIMARY | C124: RUSTENBURG | D124: 692 FREEDOM PARK RUSTENBURG | E124: 812697658 | F124: 100 | G124: 100 | H124: 100 | I124: 150
A125: 121 | B125: Hoerskool Gresnwag | C125: Rustenburg | D125: C/O of Molen and Beneden Street | E125: 145,967,590 | R125: 50 | T125: 50 | W125: 50 | Y125: 4
A126: 122 | B126: President Mangope | C126: Rustenburg | D126: TLHABANE | T126: 250 | U126: 250 | V126: 250 | W126: 60 | X126: 60 | Y126: 20
A127: 123 | B127: Tlhabane Tech | C127: Rustenburg | R127: 300 | S127: 100 | T127: 100 | W127: 46 | X127: 46 | Y127: 32
A128: 124 | B128: Seraleng Primary | C128: Rustenburg | D128: 1570 Seraleng Ext 1 | E128: 793,152,740 | G128: 80 | I128: 80 | J128: 20 | M128: 20
A129: 125 | B129: Lefaragatlhe Peimary | C129: Rustenburg | D129: Letlhakwaneng Sec, Lefaragatlhe | E129: 145,941,105 | F129: 100 | G129: 50 | H129: 50 | I129: 50 | J129: 100 | M129: 50 | W129: 25 | X129: 25 | Y129: 25
A130: 126 | B130: Rauwane Sepeng | C130: Rustenburg | D130: 2797 Cnr Ncube &Sedikwe Tlhabane | E130: 140,610,067 | R130: 200 | S130: 350 | T130: 200 | V130: 500 | W130: 45 | X130: 45 | Y130: 45
A131: 127 | B131: Bana Pele Primary | C131: Rustenburg | D131: Stand No: 16847 Boitekong Ext 18 | E131: 836,498,596 | F131: 300 | G131: 200 | H131: 150 | I131: 100 | O131: 100 | W131: 50 | X131: 25 | Y131: 50
A132: 128 | B132: Mojagedi Secondary | C132: Rustenburg | D132: 305 Maumong village | E132: 713712436 | R132: 50 | S132: 50 | V132: 50 | W132: 15 | Y132: 15
A133: 129 | B133: Grenville High School | C133: Rustenburg | D133: 98 Klopper Street, Rustenburg | E133: 014 5920344 | R133: 100 | U133: 100
A134: 130 | B134: Noka Ya Lorato Primary | C134: Rustenburg | D134: Stand 15 Lethabong | E134: 0122802986 | F134: 100 | G134: 100 | H134: 100 | I134: 100 | J134: 110 | K134: 50 | L134: 50 | M134: 60 | N134: 50 | O134: 50 | W134: 30 | X134: 30 | Y134: 30
A135: 131 | B135: Maumong | C135: Rustenburg | D135: E258 Maumong village | E135: 649923026 | F135: 0 | G135: 0 | H135: 0 | I135: 0 | J135: 0 | K135: 0 | L135: 0 | M135: 10 | N135: 0 | O135: 0 | R135: 0 | S135: 0 | T135: 0 | U135: 0 | V135: 0 | W135: ¹11 | X135: 11 | Y135: 13
A136: 132 | B136: FAPHA | C136: Rustenburg | D136: 4560 VULA, LETHABONG | E136: 122700308 | F136: 160 | G136: 0 | H136: 0 | I136: 50 | J136: 20 | K136: 100 | L136: 50 | M136: 10 | N136: 0 | O136: 0 | R136: 0 | S136: 0 | T136: 0 | U136: 0 | V136: 0 | W136: 32 | X136: 32 | Y136: 13
A137: 133 | B137: Bakwena Sec | C137: Rustenburg | D137: 0369 Thabeng Sec Modikwe | E137: 27122601001 | F137: 0 | G137: 0 | H137: 0 | I137: 0 | J137: 0 | K137: 0 | L137: 0 | M137: 0 | N137: 0 | O137: 2 | R137: 0 | S137: 0 | T137: 0 | U137: 0 | V137: 0 | W137: 25 | X137: 20 | Y137: 10
A138: 134 | B138: Boons Secondary | C138: Rustenburg | D138: Jamesroad | E138: 606651279 | F138: 200 | G138: 150 | H138: 200 | I138: 150 | J138: 70 | K138: 150 | L138: 150 | M138: 70 | N138: 200 | O138: 200 | R138: 150 | S138: 150 | T138: 100 | W138: 25 | X138: 25
A139: 135 | B139: Tshirologang P.S. | C139: Rustenburg | D139: 1774 Ext.2 Boitekong | E139: 637239839 | F139: 200 | G139: 0 | H139: 0 | I139: 200 | J139: 100 | K139: 100 | L139: 100 | M139: 25 | N139: 100 | O139: 100 | W139: 45 | X139: 20 | Y139: 28
A140: 136 | B140: Tsitsing PS | C140: Rustenburg | D140: Stand206 Rakhudu section Tsitsing | E140: 142850040 | F140: 200 | G140: 100 | H140: 200 | I140: 100 | J140: 50 | K140: 60 | L140: 60 | M140: 10 | N140: 10 | O140: 50 | R140: 10 | S140: 60 | T140: 10 | U140: 20 | V140: 20 | W140: 20 | X140: 20 | Y140: 8
A141: 137 | B141: Mazista Primary | C141: Rustenburg | D141: No: 357 Mazista Location Swartruggens 2835 | E141: 822166816 | F141: 100 | G141: 50 | H141: 50 | I141: 100 | J141: 30 | K141: 0 | L141: 0 | M141: 15 | N141: 0 | O141: 0 | R141: 0 | S141: 0 | T141: 0 | U141: 0 | V141: 0 | W141: 0 | X141: 5 | Y141: 2
A142: 138 | B142: Bakubung Intermediate School | C142: Rustenburg | D142: 85 Molope Street Molote Village Boons 0334 | E142: 837462805 | F142: 15 | G142: 20 | H142: 20 | I142: 15 | J142: 25 | K142: 20 | L142: 20 | M142: 10 | N142: 15 | O142: 15 | R142: 15 | S142: 0 | T142: 25 | U142: 0 | V142: 0 | W142: 8 | X142: 8 | Y142: 8
A143: 139 | B143: Moitshoki-Mofenyi PS | C143: Rusternburg | D143: 807 Shomang street Reagile | E143: 795173237 | F143: 150 | I143: 200 | J143: 20 | K143: 100 | M143: 20 | N143: 80 | W143: 29 | X143: 29 | Y143: 29
A144: 140 | B144: SWARTRUGGENS INTERMEDIATE | C144: RUSTENBURG | D144: 1 JASMINE STREET RODEON | E144: 149411060 | F144: 100 | G144: 0 | H144: 0 | I144: 100 | J144: 50 | K144: 50 | L144: 50 | M144: 25 | N144: 0 | O144: 0 | R144: 0 | S144: 0 | T144: 0 | U144: 0 | V144: 0 | W144: 14 | X144: 14 | Y144: 3
A145: 141 | B145: Koster Skool Gekomb | C145: Rustenburg | D145: 49 Noordstraat Koster | E145: 014 54 2013 | F145: 200 | G145: 0 | H145: 0 | I145: 0 | J145: 30 | M145: 30 | N145: 100 | R145: 80 | S145: 80 | W145: 20 | X145: 20 | Y145: 20
A146: 142 | B146: Rebone lesedi primary | C146: Rustenburg | D146: 5012 Extension 8 Koster 0348 | E146: 144630924 | F146: 100 | G146: 50 | H146: 50 | I146: 100 | J146: 40 | K146: 50 | L146: 50 | M146: 20 | W146: 36 | X146: 36 | Y146: 24
A147: 143 | B147: Koster intermediate | C147: Rustenburg | D147: 33 Bauhenia Street | E147: 145432290 | F147: 50 | R147: 50 | T147: 50
A148: 144 | B148: MPHE-BANA II SECONDARY | C148: RUSTENBURG | D148: 4238 EXTENSION 8 | E148: 835794506 | R148: 377 | S148: 180 | V148: 50 | W148: 20 | X148: 20 | Y148: 20
A149: 145 | B149: LESELE SECONDARY SCHOOL | C149: RUSTENBURG | D149: MATHOPESTAD | E149: 0829286886 | R149: 100 | S149: 100 | T149: 50 | V149: 50 | W149: 14 | X149: 14 | Y149: 4
A150: 146 | B150: Monato Primary School | C150: RUSTENBURG | D150: OORSAAK ROAD JH 44 MODDERFONTEIN | E150: 823349985 | F150: 200 | G150: 100 | H150: 100 | I150: 240
A151: 147 | B151: KGALAGATSANE PRIMARY SCHOOL | C151: RUSTENBURG | D151: 800 BODIGELO STREET | E151: 145439052 | F151: 50 | G151: 0 | H151: 25 | K151: 25 | O151: 0 | R151: 0 | S151: 0 | T151: 0 | U151: 0 | V151: 0 | W151: 10 | X151: 10 | Y151: 7
F152: =SUM(F3:F151) -> 12783 | G152: 1610 | H152: 5229 | I152: 3318 | J152: 721 | K152: 1629 | L152: 605 | M152: 403 | N152: 2070 | O152: 517 | P152: 3299 | R152: =SUM(R3:R151) -> 8847 | S152: 4838 | T152: 3565 | U152: 930 | V152: 1897 | W152: 1534 | X152: 1177 | Y152: 527 | Z152: =SUM(F152:Y152) -> 55499

Sheet Sheet2

Sheet Sheet3

Sheet Sheet4
